fUST/lending_fUST_20250626
["ID","MTS","AMOUNT","RATE_DAILY","PERIOD"]
[367646745,1750885842883,-461.9,0.00017534,2]
[367646746,1750885842893,-460.0,0.00017534,2]
[367646747,1750885842903,-2633.05,0.00017534,2]
[367646748,1750885842912,-460.0,0.00017534,2]
[367646749,1750885842923,-1653.86,0.00017534,2]
[367646750,1750885842932,-882.81,0.00017534,2]
[367646751,1750885842941,-854.18,0.00017534,2]
[367646752,1750885842952,-460.0,0.00017534,2]
[367646753,1750885842962,-1100.09,0.00017534,2]
[367646755,1750885842973,-2227.83,0.00017534,2]
[367646756,1750885842982,-460.0,0.00017534,2]
[367646757,1750885842991,-939.25,0.00017534,2]
[367646758,1750885843001,-1152.15,0.00017534,2]
[367646759,1750885843010,-460.0,0.00017534,2]
[367646760,1750885843020,-460.0,0.00017534,2]
[367646761,1750885843030,-460.0,0.00017534,2]
[367646762,1750885843039,-460.0,0.00017534,2]
[367646763,1750885843048,-460.0,0.00017534,2]
[367646764,1750885843058,-919.85,0.00017534,2]
[367646765,1750885843067,-582.48,0.00017534,2]
[367646766,1750885843076,-460.0,0.00017534,2]
[367646767,1750885843086,-460.0,0.00017534,2]
[367646768,1750885843095,-460.0,0.00017534,2]
[367646769,1750885843104,-1161.54,0.00017534,2]
[367646770,1750885843113,-460.0,0.00017534,2]
[367646771,1750885843123,-1235.74,0.00017534,2]
[367646772,1750885843132,-460.0,0.00017534,2]
[367646773,1750885843142,-639.5,0.00017534,2]
[367646774,1750885843151,-551.93,0.00017534,2]
[367646775,1750885843160,-1584.49,0.00017534,2]
[367646776,1750885843169,-460.0,0.00017534,2]
[367646777,1750885843180,-460.0,0.00017534,2]
[367646778,1750885843189,-460.0,0.00017534,2]
[367646779,1750885843199,-460.0,0.00017534,2]
[367646780,1750885843207,-808.07,0.00017534,2]
[367646781,1750885843217,-460.0,0.00017534,2]
[367646782,1750885843226,-519.67,0.00017534,2]
[367646783,1750885843235,-1012.07,0.00017534,2]
[367646784,1750885843245,-170.75,0.00017534,2]
[367646785,1750885843254,-465.13,0.00017534,2]
[367646786,1750885843263,-460.0,0.00017534,2]
[367646787,1750885843272,-460.0,0.00017534,2]
[367646788,1750885843282,-460.0,0.00017534,2]
[367646789,1750885843291,-591.89,0.00017534,2]
[367646790,1750885843301,-500.0,0.00017548,2]
[367646791,1750885843311,-836.86812089,0.00017562,2]
[367646792,1750885843320,-160.0,0.00017562,2]
[367646793,1750885843330,-12558.06783089,0.00017562,2]
[367646794,1750885843339,-160.0,0.00017562,2]
[367646795,1750885843348,-213.69531788,0.00017562,2]
[367646796,1750885843358,-160.0,0.00017562,2]
[367646797,1750885843367,-160.0,0.00017562,2]
[367646798,1750885843376,-846.80634355,0.00017562,2]
[367646799,1750885843386,-230.22714675,0.00017562,2]
[367646800,1750885843395,-425.18553072,0.00017562,2]
[367646801,1750885843404,-160.0,0.00017562,2]
[367646802,1750885843414,-323.80255647,0.00017572,2]
[367646803,1750885843424,-500.0,0.00017572,2]
[367646804,1750885843433,-482.34571679,0.00017618,2]
[367646805,1750885843442,-176.42018452,0.00017703,2]
[367646806,1750885843452,-177.09,0.00017808,2]
[367646807,1750885843461,-460.0,0.00017808,2]
[367646808,1750885843470,-488.79,0.00017808,2]
[367646809,1750885843479,-460.0,0.00017808,2]
[367646810,1750885843489,-460.0,0.00017808,2]
[367646811,1750885843499,-460.0,0.00017808,2]
[367646812,1750885843509,-460.0,0.00017808,2]
[367646813,1750885843518,-460.0,0.00017808,2]
[367646814,1750885843528,-460.0,0.00017808,2]
[367646815,1750885843537,-460.0,0.00017808,2]
[367646816,1750885843546,-1856.43,0.00017808,2]
[367646817,1750885843556,-2850.69,0.00017808,2]
[367646818,1750885843565,-460.0,0.00017808,2]
[367646819,1750885843574,-460.0,0.00017808,2]
[367646820,1750885843584,-481.29,0.00017808,2]
[367646821,1750885843593,-460.0,0.00017808,2]
[367646822,1750885843602,-613.19,0.00017808,2]
[367646823,1750885843612,-460.0,0.00017808,2]
[367646824,1750885843621,-460.0,0.00017808,2]
[367646825,1750885843631,-1831.12,0.00017808,2]
[367646826,1750885843640,-460.0,0.00017808,2]
[367646827,1750885843650,-461.9,0.00017808,2]
[367646828,1750885843659,-226.4218273,0.00017808,2]
[367646829,1750885843669,-2633.05,0.00017808,2]
[367646830,1750885843682,-460.0,0.00017808,2]
[367646831,1750885843691,-1653.86,0.00017808,2]
[367646832,1750885843701,-882.81,0.00017808,2]
[367646833,1750885843711,-854.18,0.00017808,2]
[367646834,1750885843721,-460.0,0.00017808,2]
[367646835,1750885843730,-1100.09,0.00017808,2]
[367646836,1750885843739,-2227.83,0.00017808,2]
[367646837,1750885843749,-460.0,0.00017808,2]
[367646838,1750885843759,-939.25,0.00017808,2]
[367646839,1750885843768,-1152.15,0.00017808,2]
[367646840,1750885843778,-460.0,0.00017808,2]
[367646841,1750885843788,-460.0,0.00017808,2]
[367646842,1750885843798,-460.0,0.00017808,2]
[367646843,1750885843807,-460.0,0.00017808,2]
[367646844,1750885843816,-460.0,0.00017808,2]
[367646845,1750885843825,-919.85,0.00017808,2]
[367646846,1750885843835,-582.48,0.00017808,2]
[367646847,1750885843844,-460.0,0.00017808,2]
[367646848,1750885843853,-460.0,0.00017808,2]
[367646849,1750885843863,-460.0,0.00017808,2]
[367646850,1750885843873,-1161.54,0.00017808,2]
[367646851,1750885843884,-460.0,0.00017808,2]
[367646852,1750885843893,-1235.74,0.00017808,2]
[367646853,1750885843902,-460.0,0.00017808,2]
[367646854,1750885843912,-639.5,0.00017808,2]
[367646855,1750885843922,-551.93,0.00017808,2]
[367646856,1750885843937,-1584.49,0.00017808,2]
[367646857,1750885843947,-460.0,0.00017808,2]
[367646858,1750885843958,-460.0,0.00017808,2]
[367646859,1750885843967,-460.0,0.00017808,2]
[367646860,1750885843976,-460.0,0.00017808,2]
[367646861,1750885843986,-808.07,0.00017808,2]
[367646862,1750885843995,-460.0,0.00017808,2]
[367646863,1750885844004,-519.67,0.00017808,2]
[367646864,1750885844014,-1012.07,0.00017808,2]
[367646865,1750885844023,-465.13,0.00017808,2]
[367646866,1750885844032,-460.0,0.00017808,2]
[367646867,1750885844041,-460.0,0.00017808,2]
[367646868,1750885844050,-460.0,0.00017808,2]
[367646869,1750885844059,-591.89,0.00017808,2]
[367646870,1750885844068,-500.0,0.00017863,2]
[367646871,1750885844077,-1970.33276891,0.000179,2]
[367646872,1750885844087,-420.0,0.00017962,2]
[367646873,1750885844096,-488.79,0.00018082,2]
[367646874,1750885844105,-460.0,0.00018082,2]
[367646875,1750885844115,-460.0,0.00018082,2]
[367646876,1750885844124,-460.0,0.00018082,2]
[367646877,1750885844133,-460.0,0.00018082,2]
[367646878,1750885844142,-460.0,0.00018082,2]
[367646879,1750885844151,-460.0,0.00018082,2]
[367646880,1750885844161,-460.0,0.00018082,2]
[367646881,1750885844170,-1856.43,0.00018082,2]
[367646882,1750885844182,-2850.69,0.00018082,2]
[367646883,1750885844191,-460.0,0.00018082,2]
[367646884,1750885844200,-460.0,0.00018082,2]
[367646885,1750885844210,-481.29,0.00018082,2]
[367646886,1750885844219,-362.9433646,0.00018082,2]
[367646887,1750885844229,-613.19,0.00018082,2]
[367646888,1750885844238,-460.0,0.00018082,2]
[367646889,1750885844247,-460.0,0.00018082,2]
[367646890,1750885844256,-1831.12,0.00018082,2]
[367646891,1750885844266,-460.0,0.00018082,2]
[367646892,1750885844275,-461.9,0.00018082,2]
[367646893,1750885844284,-2633.05,0.00018082,2]
[367646894,1750885844294,-460.0,0.00018082,2]
[367646895,1750885844303,-1653.86,0.00018082,2]
[367646896,1750885844313,-854.18,0.00018082,2]
[367646897,1750885844322,-882.81,0.00018082,2]
[367646898,1750885844332,-460.0,0.00018082,2]
[367646899,1750885844341,-1100.09,0.00018082,2]
[367646900,1750885844351,-2227.83,0.00018082,2]
[367646901,1750885844360,-460.0,0.00018082,2]
[367646902,1750885844369,-939.25,0.00018082,2]
[367646903,1750885844380,-1152.15,0.00018082,2]
[367646904,1750885844390,-460.0,0.00018082,2]
[367646905,1750885844399,-460.0,0.00018082,2]
[367646906,1750885844408,-460.0,0.00018082,2]
[367646907,1750885844417,-460.0,0.00018082,2]
[367646908,1750885844427,-460.0,0.00018082,2]
[367646909,1750885844436,-919.85,0.00018082,2]
[367646910,1750885844446,-582.48,0.00018082,2]
[367646911,1750885844455,-460.0,0.00018082,2]
[367646912,1750885844465,-460.0,0.00018082,2]
[367646913,1750885844474,-184.41765811,0.00018082,2]
[367646914,1750885844483,-1161.54,0.00018082,2]
[367646915,1750885844493,-460.0,0.00018082,2]
[367646916,1750885844503,-1235.74,0.00018082,2]
[367646917,1750885844512,-460.0,0.00018082,2]
[367646918,1750885844521,-639.5,0.00018082,2]
[367646919,1750885844531,-551.93,0.00018082,2]
[367646920,1750885844540,-1584.49,0.00018082,2]
[367646921,1750885844550,-460.0,0.00018082,2]
[367646922,1750885844560,-460.0,0.00018082,2]
[367646923,1750885844569,-460.0,0.00018082,2]
[367646924,1750885844578,-460.0,0.00018082,2]
[367646925,1750885844588,-808.07,0.00018082,2]
[367646926,1750885844597,-460.0,0.00018082,2]
[367646927,1750885844607,-519.67,0.00018082,2]
[367646928,1750885844615,-1012.07,0.00018082,2]
[367646929,1750885844625,-465.13,0.00018082,2]
[367646930,1750885844634,-460.0,0.00018082,2]
[367646931,1750885844644,-460.0,0.00018082,2]
[367646932,1750885844654,-460.0,0.00018082,2]
[367646933,1750885844663,-591.89,0.00018082,2]
[367646934,1750885844673,-1000.0,0.00018096,2]
[367646935,1750885844684,-1000.0,0.0001812,2]
[367646936,1750885844693,-1970.33276885,0.00018141,2]
[367646937,1750885844702,-752.81941371,0.00018179,2]
[367646938,1750885844712,-488.79,0.00018356,2]
[367646939,1750885844721,-460.0,0.00018356,2]
[367646940,1750885844731,-460.0,0.00018356,2]
[367646941,1750885844740,-460.0,0.00018356,2]
[367646942,1750885844749,-460.0,0.00018356,2]
[367646943,1750885844759,-256.1,0.00018356,2]
[367646944,1750885844769,-460.0,0.00018356,2]
[367646945,1750885844779,-460.0,0.00018356,2]
[367646946,1750885844788,-1856.43,0.00018356,2]
[367646947,1750885844798,-2850.69,0.00018356,2]
[367646948,1750885844807,-460.0,0.00018356,2]
[367646949,1750885844817,-460.0,0.00018356,2]
[367646950,1750885844826,-481.29,0.00018356,2]
[367646951,1750885844836,-613.19,0.00018356,2]
[367646952,1750885844845,-460.0,0.00018356,2]
[367646953,1750885844854,-460.0,0.00018356,2]
[367646954,1750885844863,-1831.12,0.00018356,2]
[367646955,1750885844875,-460.0,0.00018356,2]
[367646956,1750885844884,-461.9,0.00018356,2]
[367646957,1750885844894,-2633.05,0.00018356,2]
[367646958,1750885844903,-460.0,0.00018356,2]
[367646959,1750885844912,-1653.86,0.00018356,2]
[367646960,1750885844922,-854.18,0.00018356,2]
[367646961,1750885844933,-882.81,0.00018356,2]
[367646962,1750885844942,-460.0,0.00018356,2]
[367646963,1750885844952,-1100.09,0.00018356,2]
[367646964,1750885844962,-2227.83,0.00018356,2]
[367646965,1750885844971,-460.0,0.00018356,2]
[367646966,1750885844980,-939.25,0.00018356,2]
[367646967,1750885844990,-1152.15,0.00018356,2]
[367646968,1750885844999,-460.0,0.00018356,2]
[367646969,1750885845008,-460.0,0.00018356,2]
[367646970,1750885845018,-460.0,0.00018356,2]
[367646971,1750885845027,-460.0,0.00018356,2]
[367646972,1750885845037,-460.0,0.00018356,2]
[367646973,1750885845046,-919.85,0.00018356,2]
[367646974,1750885845055,-582.48,0.00018356,2]
[367646975,1750885845065,-460.0,0.00018356,2]
[367646976,1750885845074,-460.0,0.00018356,2]
[367646977,1750885845084,-1161.54,0.00018356,2]
[367646978,1750885845093,-460.0,0.00018356,2]
[367646979,1750885845102,-1235.74,0.00018356,2]
[367646980,1750885845111,-460.0,0.00018356,2]
[367646981,1750885845121,-639.5,0.00018356,2]
[367646982,1750885845130,-551.93,0.00018356,2]
[367646983,1750885845139,-1584.49,0.00018356,2]
[367646984,1750885845148,-460.0,0.00018356,2]
[367646985,1750885845158,-196.89810327,0.00018356,2]
[367646986,1750885845167,-460.0,0.00018356,2]
[367646987,1750885845176,-460.0,0.00018356,2]
[367646988,1750885845186,-808.07,0.00018356,2]
[367646989,1750885845195,-460.0,0.00018356,2]
[367646990,1750885845204,-519.67,0.00018356,2]
[367646991,1750885845213,-1012.07,0.00018356,2]
[367646992,1750885845222,-465.13,0.00018356,2]
[367646993,1750885845231,-460.0,0.00018356,2]
[367646994,1750885845241,-460.0,0.00018356,2]
[367646995,1750885845250,-460.0,0.00018356,2]
[367646996,1750885845261,-591.89,0.00018356,2]
[367646997,1750885845270,-1970.33276885,0.00018383,2]
[367646998,1750885845279,-413.555,0.00018452,2]
[367646999,1750885845289,-406.0,0.00018452,2]
[367647000,1750885845298,-168.0,0.00018588,2]
[367647001,1750885845308,-432.7968027,0.00018615,2]
[367647002,1750885845317,-1970.33276885,0.00018624,2]
[367647003,1750885845327,-488.79,0.0001863,2]
[367647004,1750885845336,-460.0,0.0001863,2]
[367647005,1750885845345,-460.0,0.0001863,2]
[367647006,1750885845355,-460.0,0.0001863,2]
[367647007,1750885845364,-460.0,0.0001863,2]
[367647008,1750885845373,-180.1,0.0001863,2]
[367647010,1750885845383,-460.0,0.0001863,2]
[367647011,1750885845519,-1856.43,0.0001863,2]
[367647012,1750885845529,-2850.69,0.0001863,2]
[367647013,1750885845539,-460.0,0.0001863,2]
[367647014,1750885845548,-460.0,0.0001863,2]
[367647016,1750885845557,-481.29,0.0001863,2]
[367647018,1750885845566,-613.19,0.0001863,2]
[367647019,1750885845576,-460.0,0.0001863,2]
[367647021,1750885845585,-460.0,0.0001863,2]
[367647023,1750885845595,-1831.12,0.0001863,2]
[367647025,1750885845604,-460.0,0.0001863,2]
[367647028,1750885845613,-461.9,0.0001863,2]
[367647029,1750885845623,-2633.05,0.0001863,2]
[367647031,1750885845632,-460.0,0.0001863,2]
[367647033,1750885845641,-1653.86,0.0001863,2]
[367647034,1750885845651,-854.18,0.0001863,2]
[367647035,1750885845660,-882.81,0.0001863,2]
[367647036,1750885845669,-460.0,0.0001863,2]
[367647037,1750885845679,-1100.09,0.0001863,2]
[367647038,1750885845688,-2227.83,0.0001863,2]
[367647039,1750885845697,-460.0,0.0001863,2]
[367647040,1750885845706,-939.25,0.0001863,2]
[367647041,1750885845715,-1152.15,0.0001863,2]
[367647043,1750885845725,-460.0,0.0001863,2]
[367647045,1750885845735,-460.0,0.0001863,2]
[367647046,1750885845744,-460.0,0.0001863,2]
[367647048,1750885845753,-460.0,0.0001863,2]
[367647050,1750885845762,-528.44,0.0001863,2]
[367647052,1750885845771,-919.85,0.0001863,2]
[367647053,1750885845781,-582.48,0.0001863,2]
[367647054,1750885845791,-460.0,0.0001863,2]
[367647055,1750885845801,-460.0,0.0001863,2]
[367647056,1750885845810,-1161.54,0.0001863,2]
[367647057,1750885845820,-460.0,0.0001863,2]
[367647058,1750885845829,-1235.74,0.0001863,2]
[367647059,1750885845838,-460.0,0.0001863,2]
[367647060,1750885845847,-639.5,0.0001863,2]
[367647061,1750885845856,-551.93,0.0001863,2]
[367647062,1750885845865,-1584.49,0.0001863,2]
[367647063,1750885845878,-460.0,0.0001863,2]
[367647064,1750885845887,-460.0,0.0001863,2]
[367647065,1750885845896,-460.0,0.0001863,2]
[367647066,1750885845905,-808.07,0.0001863,2]
[367647067,1750885845915,-460.0,0.0001863,2]
[367647068,1750885845924,-519.67,0.0001863,2]
[367647069,1750885845937,-1012.07,0.0001863,2]
[367647071,1750885845946,-465.13,0.0001863,2]
[367647072,1750885845955,-460.0,0.0001863,2]
[367647073,1750885845965,-460.0,0.0001863,2]
[367647074,1750885845975,-460.0,0.0001863,2]
[367647075,1750885845984,-591.89,0.0001863,2]
[367647076,1750885845994,-432.7968027,0.00018644,2]
[367647077,1750885846003,-500.0,0.00018644,2]
[367647078,1750885846012,-207.4,0.00018645,2]
[367647079,1750885846022,-1500.0,0.00018668,2]
[367647080,1750885846032,-306.0,0.0001883,2]
[367647081,1750885846041,-354.8312648,0.0001883,2]
[367647083,1750885846051,-574.9477627,0.0001883,2]
[367647084,1750885846060,-177.4156324,0.0001883,2]
[367647085,1750885846070,-159.1939926,0.0001883,2]
[367647086,1750885846079,-242.589,0.00018846,2]
[367647087,1750885846089,-200.225,0.00018846,2]
[367647088,1750885846098,-965.0,0.00018846,2]
[367647089,1750885846107,-654.0,0.00018846,2]
[367647090,1750885846117,-2161.0,0.00018846,2]
[367647091,1750885846126,-346.3273908,0.00018865,2]
[367647092,1750885846135,-1970.33276885,0.00018866,2]
[367647093,1750885846144,-7326.26115405,0.000189,2]
[367647094,1750885846154,-488.79,0.00018904,2]
[367647095,1750885846163,-460.0,0.00018904,2]
[367647096,1750885846172,-460.0,0.00018904,2]
[367647097,1750885846183,-460.0,0.00018904,2]
[367647098,1750885846192,-460.0,0.00018904,2]
[367647099,1750885846202,-460.0,0.00018904,2]
[367647100,1750885846211,-2850.69,0.00018904,2]
[367647101,1750885846221,-1856.43,0.00018904,2]
[367647102,1750885846230,-460.0,0.00018904,2]
[367647103,1750885846239,-460.0,0.00018904,2]
[367647104,1750885846248,-481.29,0.00018904,2]
[367647105,1750885846258,-613.19,0.00018904,2]
[367647106,1750885846267,-460.0,0.00018904,2]
[367647107,1750885846276,-460.0,0.00018904,2]
[367647108,1750885846285,-1831.12,0.00018904,2]
[367647109,1750885846295,-460.0,0.00018904,2]
[367647110,1750885846304,-461.9,0.00018904,2]
[367647111,1750885846313,-2633.05,0.00018904,2]
[367647112,1750885846323,-460.0,0.00018904,2]
[367647113,1750885846332,-1653.86,0.00018904,2]
[367647114,1750885846342,-854.18,0.00018904,2]
[367647115,1750885846352,-882.81,0.00018904,2]
[367647116,1750885846361,-460.0,0.00018904,2]
[367647117,1750885846370,-1100.09,0.00018904,2]
[367647118,1750885846380,-2227.83,0.00018904,2]
[367647119,1750885846390,-460.0,0.00018904,2]
[367647120,1750885846399,-939.25,0.00018904,2]
[367647121,1750885846409,-1152.15,0.00018904,2]
[367647122,1750885846418,-460.0,0.00018904,2]
[367647123,1750885846427,-460.0,0.00018904,2]
[367647124,1750885846437,-460.0,0.00018904,2]
[367647125,1750885846447,-378.36087987,0.00018904,2]
[367647126,1750885846588,-81.63912013,0.00018904,2]
[367647127,1750885846598,-919.85,0.00018904,2]
[367647128,1750885846610,-582.48,0.00018904,2]
[367647129,1750885846620,-460.0,0.00018904,2]
[367647130,1750885846630,-460.0,0.00018904,2]
[367647131,1750885846640,-1161.54,0.00018904,2]
[367647132,1750885846651,-460.0,0.00018904,2]
[367647133,1750885846660,-1235.74,0.00018904,2]
[367647134,1750885846669,-297.6950485,0.00018904,2]
[367647135,1750885846679,-639.5,0.00018904,2]
[367647136,1750885846689,-551.93,0.00018904,2]
[367647137,1750885846698,-1584.49,0.00018904,2]
[367647138,1750885846707,-460.0,0.00018904,2]
[367647139,1750885846716,-460.0,0.00018904,2]
[367647140,1750885846725,-460.0,0.00018904,2]
[367647141,1750885846734,-808.07,0.00018904,2]
[367647142,1750885846743,-460.0,0.00018904,2]
[367647143,1750885846753,-519.67,0.00018904,2]
[367647144,1750885846762,-172.97144837,0.00018904,2]
[367647145,1750885846802,-839.09855163,0.00018904,2]
[367647146,1750885846811,-465.13,0.00018904,2]
[367647147,1750885846821,-460.0,0.00018904,2]
[367647148,1750885846830,-460.0,0.00018904,2]
[367647149,1750885846839,-535.59411577,0.00018904,2]
[367647150,1750885847144,-460.0,0.00016438,2]
[367647151,1750885847154,-575.29,0.00016438,2]
[367647152,1750885847163,-460.0,0.0001726,2]
[367647153,1750885847172,-460.0,0.00017534,2]
[367647154,1750885847182,-460.0,0.00017808,2]
[367647155,1750885847191,-460.0,0.00018082,2]
[367647156,1750885847200,-460.0,0.00018356,2]
[367647157,1750885847209,-460.0,0.0001863,2]
[367647158,1750885847218,-56.29588423,0.00018904,2]
[367647159,1750885847228,-460.0,0.00018904,2]
[367647160,1750885847238,-432.7968027,0.00018992,2]
[367647161,1750885847248,-752.81941371,0.00019099,2]
[367647162,1750885847258,-1970.33276885,0.00019107,2]
[367647163,1750885847267,-488.79,0.00019178,2]
[367647164,1750885847276,-460.0,0.00019178,2]
[367647165,1750885847285,-460.0,0.00019178,2]
[367647166,1750885847295,-460.0,0.00019178,2]
[367647167,1750885847304,-507.4948159,0.00019178,2]
[367647168,1750885847314,-460.0,0.00019178,2]
[367647169,1750885847323,-1698.79217281,0.00019178,2]
[367647170,1750885847335,-1151.89782719,0.00019178,2]
[367647171,1750885847345,-1856.43,0.00019178,2]
[367647172,1750885847354,-460.0,0.00019178,2]
[367647173,1750885847363,-481.29,0.00019178,2]
[367647174,1750885847372,-613.19,0.00019178,2]
[367647175,1750885847381,-460.0,0.00019178,2]
[367647176,1750885847390,-460.0,0.00019178,2]
[367647177,1750885847399,-1831.12,0.00019178,2]
[367647178,1750885847409,-460.0,0.00019178,2]
[367647179,1750885847419,-461.9,0.00019178,2]
[367647180,1750885847429,-2633.05,0.00019178,2]
[367647181,1750885847438,-460.0,0.00019178,2]
[367647182,1750885847447,-1653.86,0.00019178,2]
[367647183,1750885847456,-854.18,0.00019178,2]
[367647184,1750885847465,-882.81,0.00019178,2]
[367647185,1750885847475,-460.0,0.00019178,2]
[367647186,1750885847485,-1100.09,0.00019178,2]
[367647187,1750885847494,-2227.83,0.00019178,2]
[367647188,1750885847503,-151.0,0.00019178,2]
[367647189,1750885847512,-460.0,0.00019178,2]
[367647190,1750885847521,-939.25,0.00019178,2]
[367647191,1750885847530,-1152.15,0.00019178,2]
[367647192,1750885847539,-460.0,0.00019178,2]
[367647193,1750885847548,-460.0,0.00019178,2]
[367647194,1750885847557,-460.0,0.00019178,2]
[367647195,1750885847566,-460.0,0.00019178,2]
[367647196,1750885847575,-919.85,0.00019178,2]
[367647197,1750885847584,-582.48,0.00019178,2]
[367647198,1750885847593,-460.0,0.00019178,2]
[367647199,1750885847602,-460.0,0.00019178,2]
[367647200,1750885847611,-1161.54,0.00019178,2]
[367647201,1750885847621,-460.0,0.00019178,2]
[367647202,1750885847629,-1235.74,0.00019178,2]
[367647203,1750885847638,-639.5,0.00019178,2]
[367647204,1750885847647,-551.93,0.00019178,2]
[367647205,1750885847656,-1584.49,0.00019178,2]
[367647206,1750885847665,-460.0,0.00019178,2]
[367647207,1750885847673,-460.0,0.00019178,2]
[367647208,1750885847685,-460.0,0.00019178,2]
[367647209,1750885847694,-808.07,0.00019178,2]
[367647210,1750885847703,-460.0,0.00019178,2]
[367647211,1750885847712,-519.67,0.00019178,2]
[367647212,1750885847721,-1012.07,0.00019178,2]
[367647213,1750885847730,-465.13,0.00019178,2]
[367647214,1750885847739,-460.0,0.00019178,2]
[367647215,1750885847747,-460.0,0.00019178,2]
[367647216,1750885847757,-591.89,0.00019178,2]
[367647217,1750885847765,-460.0,0.00019178,2]
[367647218,1750885847774,-388.675322,0.00019178,2]
[367647219,1750885847783,-198.0,0.00019205,2]
[367647220,1750885847793,-2000.0,0.00019216,2]
[367647221,1750885847802,-432.7968027,0.00019218,2]
[367647222,1750885847811,-1970.33276885,0.00019348,2]
[367647223,1750885847820,-168.0,0.00019404,2]
[367647224,1750885847830,-500.0,0.00019438,2]
[367647225,1750885847839,-2200.0,0.00019438,2]
[367647226,1750885847848,-488.79,0.00019452,2]
[367647227,1750885847857,-460.0,0.00019452,2]
[367647228,1750885847867,-578.15430738,0.00019452,2]
[367647229,1750885847879,-460.0,0.00019452,2]
[367647230,1750885847889,-460.0,0.00019452,2]
[367647231,1750885847899,-2850.69,0.00019452,2]
[367647232,1750885847908,-1856.43,0.00019452,2]
[367647233,1750885847919,-460.0,0.00019452,2]
[367647234,1750885847929,-420.73524714,0.00019452,2]
[367647235,1750885847943,-60.55475286,0.00019452,2]
[367647236,1750885847952,-613.19,0.00019452,2]
[367647237,1750885847962,-460.0,0.00019452,2]
[367647238,1750885847972,-460.0,0.00019452,2]
[367647239,1750885847981,-246.25524714,0.00019452,2]
[367647240,1750885848224,-1584.86475286,0.00019452,2]
[367647241,1750885848234,-460.0,0.00019452,2]
[367647242,1750885848243,-461.9,0.00019452,2]
[367647243,1750885848252,-2633.05,0.00019452,2]
[367647244,1750885848261,-460.0,0.00019452,2]
[367647245,1750885848270,-1653.86,0.00019452,2]
[367647246,1750885848279,-882.81,0.00019452,2]
[367647247,1750885848289,-854.18,0.00019452,2]
[367647248,1750885848298,-460.0,0.00019452,2]
[367647249,1750885848307,-1100.09,0.00019452,2]
[367647250,1750885848317,-2227.83,0.00019452,2]
[367647251,1750885848326,-460.0,0.00019452,2]
[367647252,1750885848335,-939.25,0.00019452,2]
[367647253,1750885848345,-1152.15,0.00019452,2]
[367647254,1750885848355,-460.0,0.00019452,2]
[367647255,1750885848364,-460.0,0.00019452,2]
[367647256,1750885848374,-460.0,0.00019452,2]
[367647257,1750885848383,-460.0,0.00019452,2]
[367647258,1750885848392,-919.85,0.00019452,2]
[367647259,1750885848401,-582.48,0.00019452,2]
[367647260,1750885848410,-460.0,0.00019452,2]
[367647261,1750885848419,-460.0,0.00019452,2]
[367647262,1750885848429,-1161.54,0.00019452,2]